fUSD/lending_fUSD_20250213
["ID","MTS","AMOUNT","RATE_DAILY","PERIOD"]
[353006541,1739485868976,-500.0,0.0001378,2]
[353006542,1739485868986,-3314.33,0.0001378,2]
[353006543,1739485868996,-451.71259955,0.0001378,2]
[353006544,1739485869006,-500.0,0.0001378,2]
[353006545,1739485869018,-3189.0,0.0001378,2]
[353006546,1739485869027,-803.11,0.0001378,2]
[353006547,1739485869037,-607.85,0.0001378,2]
[353006548,1739485869046,-761.91,0.0001378,2]
[353006549,1739485869055,-621.21,0.0001378,2]
[353006550,1739485869064,-1972.85,0.0001378,2]
[353006551,1739485869074,-523.93,0.0001378,2]
[353006552,1739485869083,-461.92480615,0.0001378,2]
[353006553,1739485869094,-3990.94,0.0001378,2]
[353006554,1739485869103,-719.42,0.0001378,2]
[353006555,1739485869113,-749.77,0.0001378,2]
[353006556,1739485869123,-500.0,0.0001378,2]
[353006557,1739485869132,-1753.67,0.0001378,2]
[353006558,1739485869141,-2497.17,0.0001378,2]
[353006559,1739485869151,-3698.9,0.0001378,2]
[353006560,1739485869160,-1325.27,0.0001378,2]
[353006561,1739485869169,-500.0,0.0001378,2]
[353006562,1739485869179,-1628.89,0.0001378,2]
[353006563,1739485869189,-3120.71,0.0001378,2]
[353006564,1739485869198,-500.0,0.0001378,2]
[353006565,1739485869206,-511.69,0.0001378,2]
[353006566,1739485869215,-3912.39,0.0001378,2]
[353006567,1739485869224,-1203.12,0.0001378,2]
[353006568,1739485869234,-635.38,0.0001378,2]
[353006569,1739485869243,-500.0,0.0001378,2]
[353006570,1739485869252,-500.0,0.0001378,2]
[353006571,1739485869262,-1174.26,0.0001378,2]
[353006572,1739485869271,-500.0,0.0001378,2]
[353006573,1739485869282,-500.0,0.0001378,2]
[353006574,1739485869292,-5014.48,0.0001378,2]
[353006575,1739485869304,-500.0,0.0001378,2]
[353006576,1739485869314,-591.53,0.0001378,2]
[353006577,1739485869323,-2834.89,0.0001378,2]
[353006578,1739485869334,-1129.98,0.0001378,2]
[353006579,1739485869344,-4012.08,0.0001378,2]
[353006580,1739485869354,-1877.06,0.0001378,2]
[353006581,1739485869364,-2305.18,0.0001378,2]
[353006582,1739485869374,-639.46548279,0.0001378,2]
[353006583,1739485869383,-3400.07,0.0001378,2]
[353006584,1739485869394,-10601.94,0.0001378,2]
[353006585,1739485869404,-1278.06,0.0001378,2]
[353006586,1739485869415,-500.0,0.0001378,2]
[353006587,1739485869424,-2677.19,0.0001378,2]
[353006588,1739485869434,-2091.53,0.0001378,2]
[353006589,1739485869444,-1914.19,0.0001378,2]
[353006590,1739485869454,-500.0,0.0001378,2]
[353006591,1739485869464,-1244.36,0.0001378,2]
[353006592,1739485869474,-6319.86,0.0001378,2]
[353006593,1739485869483,-2222.28,0.0001378,2]
[353006594,1739485869493,-2434.73,0.0001378,2]
[353006595,1739485869503,-1301.75,0.0001378,2]
[353006596,1739485869513,-3378.69,0.0001378,2]
[353006597,1739485869523,-1073.98,0.0001378,2]
[353006598,1739485869533,-500.0,0.0001378,2]
[353006599,1739485869543,-1003.25,0.0001378,2]
[353006600,1739485869553,-500.0,0.0001378,2]
[353006601,1739485869562,-3213.97,0.0001378,2]
[353006602,1739485869572,-1894.84,0.0001378,2]
[353006603,1739485869581,-500.0,0.0001378,2]
[353006604,1739485869591,-1618.51,0.0001378,2]
[353006605,1739485869600,-500.0,0.0001378,2]
[353006606,1739485869611,-3027.83,0.0001378,2]
[353006607,1739485869621,-1463.57,0.0001378,2]
[353006608,1739485869631,-551.57,0.0001378,2]
[353006609,1739485869642,-1866.04,0.0001378,2]
[353006610,1739485869652,-3405.09,0.0001378,2]
[353006611,1739485869662,-500.0,0.0001378,2]
[353006612,1739485869672,-3794.0,0.0001378,2]
[353006613,1739485869682,-3558.25,0.0001378,2]
[353006614,1739485869692,-1199.38,0.0001378,2]
[353006615,1739485869702,-972.02,0.0001378,2]
[353006616,1739485869712,-5141.78,0.0001378,2]
[353006617,1739485869722,-5036.58,0.0001378,2]
[353006618,1739485869732,-500.0,0.0001378,2]
[353006619,1739485869743,-501.29654235,0.0001378,2]
[353006620,1739485869753,-1457.37,0.0001378,2]
[353006621,1739485869763,-500.0,0.0001378,2]
[353006622,1739485869773,-4943.34,0.0001378,2]
[353006623,1739485869782,-1646.26,0.0001378,2]
[353006624,1739485869793,-1023.76,0.0001378,2]
[353006625,1739485869802,-973.76,0.0001378,2]
[353006626,1739485869812,-500.0,0.0001378,2]
[353006627,1739485869821,-3488.7,0.0001378,2]
[353006628,1739485869831,-1078.92,0.0001378,2]
[353006629,1739485869842,-9947.08,0.0001378,2]
[353006630,1739485869851,-500.0,0.0001378,2]
[353006631,1739485869862,-1167.35,0.0001378,2]
[353006632,1739485869879,-1925.44,0.0001378,2]
[353006633,1739485869889,-3871.01,0.0001378,2]
[353006634,1739485869899,-3374.31,0.0001378,2]
[353006635,1739485869909,-500.0,0.0001378,2]
[353006636,1739485869919,-3262.34,0.0001378,2]
[353006637,1739485869929,-3751.7,0.0001378,2]
[353006638,1739485869939,-500.0,0.0001378,2]
[353006639,1739485869949,-2216.47,0.0001378,2]
[353006640,1739485869959,-500.0,0.0001378,2]
[353006641,1739485869969,-500.0,0.0001378,2]
[353006642,1739485869979,-500.0,0.0001378,2]
[353006643,1739485869988,-1272.94,0.0001378,2]
[353006644,1739485869998,-2198.57,0.0001378,2]
[353006645,1739485870009,-531.14027315,0.0001378,2]
[353006646,1739485870024,-3047.23,0.0001378,2]
[353006647,1739485870034,-500.0,0.0001378,2]
[353006648,1739485870044,-4282.13,0.0001378,2]
[353006649,1739485870055,-1579.29,0.0001378,2]
[353006650,1739485870064,-2262.09,0.0001378,2]
[353006651,1739485870074,-2034.1,0.0001378,2]
[353006652,1739485870083,-4796.16,0.0001378,2]
[353006653,1739485870097,-621.58,0.0001378,2]
[353006654,1739485870107,-4188.27,0.0001378,2]
[353006655,1739485870120,-5302.96,0.0001378,2]
[353006656,1739485870130,-2900.35,0.0001378,2]
[353006657,1739485870140,-500.0,0.0001378,2]
[353006658,1739485870150,-3352.12,0.0001378,2]
[353006659,1739485870160,-525.01,0.0001378,2]
[353006660,1739485870169,-500.0,0.0001378,2]
[353006661,1739485870179,-500.0,0.0001378,2]
[353006662,1739485870189,-2517.29,0.0001378,2]
[353006663,1739485870199,-3510.5,0.0001378,2]
[353006664,1739485870209,-500.0,0.0001378,2]
[353006665,1739485870218,-1911.76,0.0001378,2]
[353006666,1739485870227,-500.0,0.0001378,2]
[353006667,1739485870237,-3186.25,0.0001378,2]
[353006668,1739485870246,-1411.53,0.0001378,2]
[353006669,1739485870256,-5245.34,0.0001378,2]
[353006670,1739485870266,-500.0,0.0001378,2]
[353006671,1739485870275,-469.18,0.0001378,2]
[353006672,1739485870285,-4040.71,0.0001378,2]
[353006673,1739485870295,-2434.4,0.0001378,2]
[353006674,1739485870304,-500.0,0.0001378,2]
[353006675,1739485870314,-797.43,0.0001378,2]
[353006676,1739485870324,-3997.95,0.0001378,2]
[353006677,1739485870334,-500.0,0.0001378,2]
[353006678,1739485870344,-3418.06,0.0001378,2]
[353006679,1739485870354,-500.0,0.0001378,2]
[353006680,1739485870365,-3613.39,0.0001378,2]
[353006681,1739485870376,-500.0,0.0001378,2]
[353006682,1739485870386,-566.64,0.0001378,2]
[353006683,1739485870396,-500.0,0.0001378,2]
[353006684,1739485870407,-500.0,0.0001378,2]
[353006685,1739485870417,-500.0,0.0001378,2]
[353006686,1739485870427,-500.0,0.0001378,2]
[353006687,1739485870437,-500.0,0.0001378,2]
[353006688,1739485870447,-8838.73,0.0001378,2]
[353006689,1739485870457,-624.99,0.0001378,2]
[353006690,1739485870467,-720.74,0.0001378,2]
[353006691,1739485870477,-500.0,0.0001378,2]
[353006692,1739485870487,-3533.94,0.0001378,2]
[353006693,1739485870497,-3776.32,0.0001378,2]
[353006694,1739485870506,-522.13,0.0001378,2]
[353006695,1739485870516,-4171.69,0.0001378,2]
[353006696,1739485870525,-2767.11,0.0001378,2]
[353006697,1739485870535,-500.0,0.0001378,2]
[353006698,1739485870545,-500.0,0.0001378,2]
[353006699,1739485870555,-500.0,0.0001378,2]
[353006700,1739485870564,-1300.63,0.0001378,2]
[353006701,1739485870573,-3523.18,0.0001378,2]
[353006702,1739485870582,-4629.45,0.0001378,2]
[353006703,1739485870591,-2317.93,0.0001378,2]
[353006704,1739485870601,-542.74,0.0001378,2]
[353006705,1739485870612,-649.96,0.0001378,2]
[353006706,1739485870622,-6501.79,0.0001378,2]
[353006707,1739485870631,-500.0,0.0001378,2]
[353006708,1739485870641,-500.0,0.0001378,2]
[353006709,1739485870650,-500.0,0.0001378,2]
[353006710,1739485870660,-2852.77,0.0001378,2]
[353006711,1739485870670,-4468.57,0.0001378,2]
[353006712,1739485870680,-773.78,0.0001378,2]
[353006713,1739485870690,-724.47,0.0001378,2]
[353006714,1739485870700,-508.00466441,0.0001378,2]
[353006715,1739485870710,-2513.38,0.0001378,2]
[353006716,1739485870721,-4071.43,0.0001378,2]
[353006717,1739485870730,-3680.29,0.0001378,2]
[353006718,1739485870739,-3113.41,0.0001378,2]
[353006719,1739485870748,-500.0,0.0001378,2]
[353006720,1739485870758,-964.12,0.0001378,2]
[353006721,1739485870767,-500.0,0.0001378,2]
[353006722,1739485870777,-500.0,0.0001378,2]
[353006723,1739485870787,-500.0,0.0001378,2]
[353006724,1739485870797,-500.0,0.0001378,2]
[353006725,1739485870807,-1523.71,0.0001378,2]
[353006726,1739485870818,-525.45,0.0001378,2]
[353006727,1739485870827,-741.53,0.0001378,2]
[353006728,1739485870837,-2768.98,0.0001378,2]
[353006729,1739485870847,-1470.77,0.0001378,2]
[353006730,1739485870857,-3441.38,0.0001378,2]
[353006731,1739485870867,-4132.51,0.0001378,2]
[353006732,1739485870876,-1712.88,0.0001378,2]
[353006733,1739485870886,-500.59425366,0.0001378,2]
[353006734,1739485870896,-500.0,0.0001378,2]
[353006735,1739485870906,-500.0,0.0001378,2]
[353006736,1739485870915,-4938.55,0.0001378,2]
[353006737,1739485870924,-2124.68,0.0001378,2]
[353006738,1739485870934,-1789.26,0.0001378,2]
[353006739,1739485870944,-1226.02,0.0001378,2]
[353006740,1739485870954,-1451.96,0.0001378,2]
[353006741,1739485870964,-500.0,0.0001378,2]
[353006742,1739485870973,-824.05,0.0001378,2]
[353006743,1739485870982,-500.0,0.0001378,2]
[353006744,1739485870992,-3558.23,0.0001378,2]
[353006745,1739485871002,-880.79,0.0001378,2]
[353006746,1739485871017,-4167.53,0.0001378,2]
[353006747,1739485871027,-1936.97,0.0001378,2]
[353006748,1739485871037,-1838.56,0.0001378,2]
[353006749,1739485871047,-2962.2,0.0001378,2]
[353006750,1739485871058,-500.0,0.0001378,2]
[353006751,1739485871068,-598.78,0.0001378,2]
[353006752,1739485871078,-500.0,0.0001378,2]
[353006753,1739485871089,-709.99,0.0001378,2]
[353006754,1739485871100,-4502.56,0.0001378,2]
[353006755,1739485871110,-3700.24,0.0001378,2]
[353006756,1739485871120,-500.0,0.0001378,2]
[353006757,1739485871130,-1563.0,0.0001378,2]
[353006758,1739485871139,-299.52613011,0.00013781,2]
[353006759,1739485871150,-367.0,0.000138,2]
[353006760,1739485871167,-536.0,0.000138,2]
[353006761,1739485871179,-231.0,0.000138,2]
[353006762,1739485871188,-500.0,0.00013808,2]
[353006763,1739485871197,-1563.0,0.00013808,2]
[353006764,1739485871207,-792.28,0.0001382,2]
[353006765,1739485871217,-1517.149428,0.00013822,2]
[353006766,1739485871227,-1500.0,0.00013822,2]
[353006767,1739485871296,-500.0,0.00013835,2]
[353006768,1739485871307,-1563.0,0.00013835,2]
[353006769,1739485871317,-299.52613011,0.00013836,2]
[353006770,1739485871327,-7084.9810658,0.00013854,2]
[353006771,1739485871337,-262.42308,0.00013854,2]
[353006772,1739485871347,-2110.2730604,0.00013854,2]
[353006773,1739485871356,-500.0,0.00013862,2]
[353006774,1739485871367,-1563.0,0.00013862,2]
[353006775,1739485871377,-4020.48,0.00013863,2]
[353006776,1739485871387,-4020.48,0.00013863,2]
[353006777,1739485871396,-4020.48,0.00013863,2]
[353006778,1739485871406,-4020.48,0.00013863,2]
[353006779,1739485871415,-4020.48,0.00013863,2]
[353006780,1739485871425,-4020.48,0.00013863,2]
[353006781,1739485871434,-4020.48,0.00013863,2]
[353006782,1739485871443,-4020.48,0.00013863,2]
[353006783,1739485871453,-4020.48,0.00013863,2]
[353006784,1739485871463,-4020.48,0.00013863,2]
[353006785,1739485871472,-4020.48,0.00013863,2]
[353006786,1739485871482,-4020.48,0.00013863,2]
[353006787,1739485871491,-4020.48,0.00013863,2]
[353006788,1739485871500,-4020.48,0.00013863,2]
[353006789,1739485871510,-4020.48,0.00013863,2]
[353006790,1739485871519,-4020.48,0.00013863,2]
[353006791,1739485871529,-4020.48,0.00013863,2]
[353006792,1739485871539,-4020.48,0.00013863,2]
[353006793,1739485871548,-4020.48,0.00013863,2]
[353006794,1739485871557,-4020.63161467,0.00013863,2]
[353006795,1739485871566,-1124.476697,0.00013863,2]
[353006796,1739485871576,-1030.770305,0.00013863,2]
[353006797,1739485871585,-1369.077968,0.00013863,2]
[353006798,1739485871594,-500.0,0.00013863,2]
[353006799,1739485871604,-500.0,0.00013863,2]
[353006800,1739485871614,-781.27,0.00013863,2]
[353006801,1739485871623,-500.0,0.00013863,2]
[353006802,1739485871632,-640.12,0.00013863,2]
[353006803,1739485871642,-500.0,0.00013863,2]
[353006804,1739485871652,-500.0,0.00013863,2]
[353006805,1739485871662,-500.0,0.00013863,2]
[353006806,1739485871672,-571.73,0.00013863,2]
[353006807,1739485871682,-500.0,0.00013863,2]
[353006808,1739485871691,-500.0,0.00013863,2]
[353006809,1739485871701,-767.83,0.00013863,2]
[353006810,1739485871711,-500.0,0.00013863,2]
[353006811,1739485871721,-500.0,0.00013863,2]
[353006812,1739485871731,-517.58,0.00013863,2]
[353006813,1739485871741,-748.33,0.00013863,2]
[353006814,1739485871751,-500.0,0.00013863,2]
[353006815,1739485871761,-503.52712336,0.00013863,2]
[353006816,1739485871770,-1019.36,0.00013863,2]
[353006817,1739485871780,-500.0,0.00013863,2]
[353006818,1739485871790,-500.0,0.00013863,2]
[353006819,1739485871800,-500.0,0.00013863,2]
[353006820,1739485871809,-500.0,0.00013863,2]
[353006821,1739485871819,-500.0,0.00013863,2]
[353006822,1739485871828,-500.0,0.00013863,2]
[353006823,1739485871838,-500.0,0.00013863,2]
[353006824,1739485871847,-536.11,0.00013863,2]
[353006825,1739485871857,-500.0,0.00013863,2]
[353006826,1739485871868,-500.0,0.00013863,2]
[353006827,1739485871877,-853.88,0.00013863,2]
[353006828,1739485871887,-500.0,0.00013863,2]
[353006829,1739485871896,-500.0,0.00013863,2]
[353006830,1739485871906,-500.0,0.00013863,2]
[353006831,1739485871916,-500.0,0.00013863,2]
[353006832,1739485871927,-500.0,0.00013863,2]
[353006833,1739485871937,-500.0,0.00013863,2]
[353006834,1739485871947,-500.0,0.00013863,2]
[353006835,1739485871958,-1237.75,0.00013863,2]
[353006836,1739485871968,-500.0,0.00013863,2]
[353006837,1739485871978,-325.85572489,0.00013863,2]
[353006838,1739485871988,-500.0,0.00013863,2]
[353006839,1739485871998,-500.0,0.00013863,2]
[353006840,1739485872008,-500.0,0.00013863,2]
[353006841,1739485872020,-500.0,0.00013863,2]
[353006842,1739485872030,-500.0,0.00013863,2]
[353006843,1739485872040,-500.0,0.00013863,2]
[353006844,1739485872050,-823.6,0.00013863,2]
[353006845,1739485872060,-500.0,0.00013863,2]
[353006846,1739485872071,-500.0,0.00013863,2]
[353006847,1739485872080,-500.0,0.00013863,2]
[353006848,1739485872089,-583.03,0.00013863,2]
[353006849,1739485872100,-588.86,0.00013863,2]
[353006850,1739485872109,-500.0,0.00013863,2]
[353006851,1739485872120,-503.7591482,0.00013863,2]
[353006852,1739485872129,-500.0,0.00013863,2]
[353006853,1739485872140,-500.0,0.00013863,2]
[353006854,1739485872150,-839.01,0.00013863,2]
[353006855,1739485872160,-632.18,0.00013863,2]
[353006856,1739485872170,-500.0,0.00013863,2]
[353006857,1739485872180,-500.0,0.00013863,2]
[353006858,1739485872190,-500.0,0.00013863,2]
[353006859,1739485872199,-1100.34,0.00013863,2]
[353006860,1739485872208,-500.0,0.00013863,2]
[353006861,1739485872217,-500.0,0.00013863,2]
[353006862,1739485872227,-907.89,0.00013863,2]
[353006863,1739485872237,-500.0,0.00013863,2]
[353006864,1739485872247,-500.0,0.00013863,2]
[353006865,1739485872258,-791.76,0.00013863,2]
[353006866,1739485872267,-500.0,0.00013863,2]
[353006867,1739485872277,-500.0,0.00013863,2]
[353006868,1739485872287,-500.0,0.00013863,2]
[353006869,1739485872297,-1002.52,0.00013863,2]
[353006870,1739485872306,-500.0,0.00013863,2]
[353006871,1739485872317,-673.2,0.00013863,2]
[353006872,1739485872327,-500.0,0.00013863,2]
[353006873,1739485872337,-864.99,0.00013863,2]
[353006874,1739485872347,-500.0,0.00013863,2]
[353006875,1739485872356,-500.0,0.00013863,2]
[353006876,1739485872366,-500.0,0.00013863,2]
[353006877,1739485872376,-606.37,0.00013863,2]
[353006878,1739485872386,-556.42,0.00013863,2]
[353006879,1739485872395,-500.0,0.00013863,2]
[353006880,1739485872405,-500.0,0.00013863,2]
[353006881,1739485872414,-500.0,0.00013863,2]
[353006882,1739485872424,-500.0,0.00013863,2]
[353006883,1739485872434,-500.0,0.00013863,2]
[353006884,1739485872443,-500.0,0.00013863,2]
[353006885,1739485872453,-500.0,0.00013863,2]
[353006886,1739485872463,-542.4,0.00013863,2]
[353006887,1739485872472,-500.0,0.00013863,2]
[353006888,1739485872481,-503.11288139,0.00013863,2]
[353006889,1739485872491,-500.0,0.00013863,2]
[353006890,1739485872500,-500.0,0.00013863,2]
[353006891,1739485872510,-606.89,0.00013863,2]
[353006892,1739485872519,-551.03,0.00013863,2]
[353006893,1739485872530,-500.0,0.00013863,2]
[353006894,1739485872542,-571.58,0.00013863,2]
[353006895,1739485872552,-507.69,0.00013863,2]
[353006896,1739485872562,-500.0,0.00013863,2]
[353006897,1739485872571,-500.0,0.00013863,2]
[353006898,1739485872581,-500.0,0.00013863,2]
[353006899,1739485872591,-500.0,0.00013863,2]
[353006900,1739485872600,-500.0,0.00013863,2]
[353006901,1739485872610,-500.0,0.00013863,2]
[353006902,1739485872620,-500.0,0.00013863,2]
[353006903,1739485872630,-377.2709288,0.00013863,2]
[353006904,1739485872639,-473.3331658,0.00013863,2]
[353006905,1739485872649,-500.0,0.00013863,2]
[353006906,1739485872658,-500.0,0.00013863,2]
[353006907,1739485872667,-500.0,0.00013863,2]
[353006908,1739485872677,-500.0,0.00013863,2]
[353006909,1739485872687,-500.0,0.00013863,2]
[353006910,1739485872696,-500.0,0.00013863,2]
[353006911,1739485872706,-500.0,0.00013863,2]
[353006912,1739485872715,-500.0,0.00013863,2]
[353006913,1739485872725,-2208.67,0.00013863,2]
[353006914,1739485872735,-500.0,0.00013863,2]
[353006915,1739485872744,-543.67,0.00013863,2]
[353006916,1739485872755,-823.62,0.00013863,2]
[353006917,1739485872764,-653.16,0.00013863,2]
[353006918,1739485872774,-336.63900054,0.00013863,2]
[353006919,1739485872783,-500.0,0.00013863,2]
[353006920,1739485872793,-500.0,0.00013863,2]
[353006921,1739485872803,-500.0,0.00013863,2]
[353006922,1739485872812,-500.0,0.00013863,2]
[353006923,1739485872822,-1041.6,0.00013863,2]
[353006924,1739485872831,-638.54,0.00013863,2]
[353006925,1739485872841,-500.0,0.00013863,2]
[353006926,1739485872850,-500.0,0.00013863,2]
[353006927,1739485872860,-389.44453693,0.00013863,2]
[353006928,1739485872870,-2539.19,0.00013863,2]
[353006929,1739485872879,-500.0,0.00013863,2]
[353006930,1739485872889,-500.0,0.00013863,2]
[353006931,1739485872899,-500.0,0.00013863,2]
[353006932,1739485872909,-500.0,0.00013863,2]
[353006933,1739485872918,-500.0,0.00013863,2]
[353006934,1739485872927,-3052.42,0.00013863,2]
[353006935,1739485872938,-514.61,0.00013863,2]
[353006936,1739485872948,-500.0,0.00013863,2]
[353006937,1739485872958,-500.0,0.00013863,2]
[353006938,1739485872967,-1525.33,0.00013863,2]
[353006939,1739485872976,-867.43,0.00013863,2]
[353006940,1739485872986,-500.0,0.00013863,2]
[353006941,1739485872995,-500.0,0.00013863,2]
[353006942,1739485873005,-500.0,0.00013863,2]
[353006943,1739485873019,-500.0,0.00013863,2]
[353006944,1739485873028,-500.0,0.00013863,2]
[353006945,1739485873038,-500.0,0.00013863,2]
[353006946,1739485873047,-500.0,0.00013863,2]
[353006947,1739485873058,-500.0,0.00013863,2]
[353006948,1739485873068,-500.0,0.00013863,2]
[353006949,1739485873077,-500.0,0.00013863,2]
[353006950,1739485873087,-500.0,0.00013863,2]
[353006951,1739485873096,-500.0,0.00013863,2]
[353006952,1739485873106,-500.0,0.00013863,2]
[353006953,1739485873117,-1400.14,0.00013863,2]
[353006954,1739485873127,-500.0,0.00013863,2]
[353006955,1739485873137,-500.0,0.00013863,2]
[353006956,1739485873147,-500.0,0.00013863,2]
[353006957,1739485873157,-500.0,0.00013863,2]
[353006958,1739485873167,-917.77,0.00013863,2]
[353006959,1739485873179,-1241.27,0.00013863,2]
[353006960,1739485873188,-991.55,0.00013863,2]
[353006961,1739485873197,-500.0,0.00013863,2]
[353006962,1739485873207,-566.52,0.00013863,2]
[353006963,1739485873217,-500.0,0.00013863,2]
[353006964,1739485873227,-500.0,0.00013863,2]
[353006965,1739485873237,-500.0,0.00013863,2]
[353006966,1739485873247,-500.0,0.00013863,2]
[353006967,1739485873256,-500.0,0.00013863,2]
[353006968,1739485873265,-500.0,0.00013863,2]
[353006969,1739485873275,-633.2,0.00013863,2]
[353006970,1739485873285,-717.52,0.00013863,2]
[353006971,1739485873294,-500.0,0.00013863,2]
[353006972,1739485873303,-689.5,0.00013863,2]
[353006973,1739485873312,-500.0,0.00013863,2]
[353006974,1739485873322,-500.0,0.00013863,2]
[353006975,1739485873334,-965.58,0.00013863,2]
[353006976,1739485873345,-500.0,0.00013863,2]
[353006977,1739485873354,-500.0,0.00013863,2]
[353006978,1739485873366,-756.27,0.00013863,2]
[353006979,1739485873377,-500.0,0.00013863,2]
[353006980,1739485873387,-687.68,0.00013863,2]
[353006981,1739485873397,-500.0,0.00013863,2]
[353006982,1739485873407,-500.0,0.00013863,2]
[353006983,1739485873416,-1669.58,0.00013863,2]
[353006984,1739485873426,-1501.09,0.00013863,2]
[353006985,1739485873436,-500.0,0.00013863,2]
[353006986,1739485873446,-825.83,0.00013863,2]
[353006987,1739485873455,-1337.74,0.00013863,2]
[353006988,1739485873465,-500.0,0.00013863,2]
[353006989,1739485873475,-500.0,0.00013863,2]
[353006990,1739485873484,-1371.86,0.00013863,2]
[353006991,1739485873494,-500.0,0.00013863,2]
[353006992,1739485873503,-1702.26,0.00013863,2]
[353006993,1739485873513,-508.33627601,0.00013863,2]
[353006994,1739485873523,-500.0,0.00013863,2]
[353006995,1739485873532,-500.0,0.00013863,2]
[353006996,1739485873542,-1754.49,0.00013863,2]
[353006997,1739485873551,-500.0,0.00013863,2]
[353006998,1739485873561,-500.0,0.00013863,2]
[353006999,1739485873570,-1078.61,0.00013863,2]
[353007000,1739485873580,-869.45,0.00013863,2]
[353007001,1739485873589,-500.0,0.00013863,2]
[353007002,1739485873598,-1158.07,0.00013863,2]
[353007003,1739485873607,-500.0,0.00013863,2]
[353007004,1739485873619,-500.0,0.00013863,2]
[353007005,1739485873630,-500.0,0.00013863,2]
[353007006,1739485873639,-500.0,0.00013863,2]
[353007007,1739485873648,-500.0,0.00013863,2]
[353007008,1739485873659,-500.0,0.00013863,2]
[353007009,1739485873668,-991.47,0.00013863,2]
[353007010,1739485873678,-500.0,0.00013863,2]
[353007011,1739485873687,-500.0,0.00013863,2]
[353007012,1739485873695,-1684.45,0.00013863,2]
[353007013,1739485873705,-526.8,0.00013863,2]
[353007014,1739485873714,-660.93,0.00013863,2]
[353007015,1739485873725,-1302.35,0.00013863,2]
[353007016,1739485873734,-500.0,0.00013863,2]
[353007017,1739485873744,-854.62,0.00013863,2]
[353007018,1739485873755,-2012.26,0.00013863,2]
[353007019,1739485873764,-504.56,0.00013863,2]
[353007020,1739485873774,-763.9,0.00013863,2]
[353007021,1739485873784,-696.46,0.00013863,2]
[353007022,1739485873793,-835.17,0.00013863,2]
[353007023,1739485873803,-692.97,0.00013863,2]
[353007024,1739485873814,-566.32,0.00013863,2]
[353007025,1739485873823,-857.95,0.00013863,2]
[353007026,1739485873833,-500.0,0.00013863,2]
[353007027,1739485873843,-2021.1,0.00013863,2]
[353007028,1739485873853,-702.16,0.00013863,2]
[353007029,1739485873864,-683.82,0.00013863,2]
[353007030,1739485873874,-1015.7,0.00013863,2]
[353007031,1739485873884,-500.0,0.00013863,2]
[353007032,1739485873893,-713.38,0.00013863,2]
[353007033,1739485873903,-500.0,0.00013863,2]
[353007034,1739485873914,-500.0,0.00013863,2]
[353007035,1739485873923,-500.0,0.00013863,2]
[353007036,1739485873933,-500.0,0.00013863,2]
[353007037,1739485873942,-500.0,0.00013863,2]
[353007038,1739485873951,-1424.92,0.00013863,2]
[353007039,1739485873960,-500.0,0.00013863,2]
[353007040,1739485873970,-500.0,0.00013863,2]